[Event "Gibraltar Masters 18th"]
[Site "Gibraltar"]
[Date "2020.01.25"]
[Round "5.28"]
[White "Saric, Ivan"]
[Black "Girya, Olga"]
[Result "1-0"]
[ECO "B12"]
[WhiteElo "2655"]
[BlackElo "2477"]
[PlyCount "121"]
[EventDate "2020.01.21"]
[EventType "swiss"]
[EventRounds "10"]
[EventCountry "GGB"]
[SourceTitle "BritBase"]
[Source "John Saunders"]
[SourceDate "2021.06.05"]
[SourceVersion "1"]
[SourceVersionDate "2021.06.05"]
[SourceQuality "1"]
[TimeControl "40/100:0"]
[WhiteClock "0:57:07"]
[BlackClock "0:00:40"]

1. e4 {[%emt 0:00:00]} c6 {[%emt 0:00:00]} 2. d4 {[%emt 0:00:00]} d5 {[%emt 0:
00:00]} 3. e5 {[%emt 0:00:00]} Bf5 {[%emt 0:00:00]} 4. Nf3 {[%emt 0:00:00]} e6
{[%emt 0:00:00]} 5. Be2 {[%emt 0:00:00]} Ne7 {[%emt 0:00:00]} 6. O-O {[%emt 0:
00:00]} c5 {[%emt 0:00:00]} 7. Na3 {[%emt 0:00:00]} Nec6 {[%emt 0:00:00]} 8. c4
{[%emt 0:00:00]} Be4 {[%emt 0:00:00]} 9. Nb5 {[%emt 0:00:00]} a6 {[%emt 0:00:
00]} 10. Nc3 {[%emt 0:00:00]} Bxf3 {[%emt 0:00:00]} 11. Bxf3 {[%emt 0:00:00]}
cxd4 {[%emt 0:00:00]} 12. cxd5 {[%emt 0:00:00]} dxc3 {[%emt 0:00:00]} 13. dxc6
{[%emt 0:00:00]} Nxc6 {[%emt 0:00:00]} 14. bxc3 {[%emt 0:00:00]} Qc7 {[%emt 0:
00:00]} 15. Rb1 {[%emt 0:00:00]} Bc5 {[%emt 0:00:00]} 16. Qa4 {[%emt 0:00:00]}
O-O {[%emt 0:00:00]} 17. Rxb7 {[%emt 0:00:00]} Qxb7 {[%emt 0:00:00]} 18. Bxc6 {
[%emt 0:00:00]} Qc7 {[%emt 0:00:00]} 19. Bxa8 {[%emt 0:00:00]} Rxa8 {[%emt 0:
00:00]} 20. Bf4 {[%emt 0:00:00]} Qb6 {[%emt 0:00:00]} 21. h4 {[%emt 0:00:00]}
h6 {[%emt 0:00:00]} 22. h5 {[%emt 0:00:00]} Rd8 {[%emt 0:00:00]} 23. Qc2 {
[%emt 0:00:00]} Qb5 {[%emt 0:00:00]} 24. c4 {[%emt 0:00:00]} Qd7 {[%emt 0:00:
00]} 25. Rb1 {[%emt 0:00:00]} Qd4 {[%emt 0:00:00]} 26. g3 {[%emt 0:00:00]} Qd7
{[%emt 0:00:00]} 27. Re1 {[%emt 0:00:00]} Bb4 {[%emt 0:00:00]} 28. Rb1 {
[%emt 0:00:00]} Bc5 {[%emt 0:00:00]} 29. Qe2 {[%emt 0:00:00]} Qc6 {[%emt 0:00:
00]} 30. Rc1 {[%emt 0:00:00]} Qa4 {[%emt 0:00:00]} 31. Kh2 {[%emt 0:00:00]} Qc6
{[%emt 0:00:00]} 32. f3 {[%emt 0:00:00]} Qa4 {[%emt 0:00:00]} 33. g4 {[%emt 0:
00:00]} Ba3 {[%emt 0:00:00]} 34. Rc2 {[%emt 0:00:00]} Be7 {[%emt 0:00:00]} 35.
Kg2 {[%emt 0:00:00]} Qa5 {[%emt 0:00:16]} 36. Bg3 {[%emt 0:00:00]} Bc5 {
[%emt 0:00:34]} 37. f4 {[%emt 0:00:00]} Qa4 {[%emt 0:00:00]} 38. g5 {[%emt 0:
00:00]} Qc6+ {[%emt 0:00:00]} 39. Kh2 {[%emt 0:00:00]} hxg5 {[%emt 0:00:10]}
40. fxg5 {[%emt 0:00:00]} Qd7 {[%emt 0:00:05]} 41. g6 {[%emt 0:00:00]} Qe8 {
[%emt 0:00:00]} 42. Qg4 {[%emt 0:00:00]} Rd4 {[%emt 0:00:00]} 43. Qg5 {[%emt 0:
00:00]} Be7 {[%emt 0:00:00]} 44. gxf7+ {[%emt 0:00:00]} Qxf7 {[%emt 0:00:00]}
45. Qg6 {[%emt 0:00:00]} Bd8 {[%emt 0:00:00]} 46. c5 {[%emt 0:00:00]} Bc7 {
[%emt 0:00:00]} 47. c6 {[%emt 0:00:00]} Rd1 {[%emt 0:00:00]} 48. Qxf7+ {
[%emt 0:00:00]} Kxf7 {[%emt 0:00:00]} 49. Bf4 {[%emt 0:00:00]} Rd3 {[%emt 0:00:
00]} 50. Kg2 {[%emt 0:00:00]} Ke8 {[%emt 0:00:00]} 51. Rd2 {[%emt 0:00:00]}
Rxd2+ {[%emt 0:00:00]} 52. Bxd2 {[%emt 0:00:00]} Bxe5 {[%emt 0:00:00]} 53. Kf3
{[%emt 0:00:00]} Ke7 {[%emt 0:00:00]} 54. Ke4 {[%emt 0:00:00]} Bf6 {[%emt 0:00:
00]} 55. Bf4 {[%emt 0:00:00]} Kd8 {[%emt 0:01:27]} 56. Be5 {[%emt 0:00:00]} Bg5
{[%emt 0:00:03]} 57. Bxg7 {[%emt 0:00:00]} Kc7 {[%emt 0:00:00]} 58. Be5+ {
[%emt 0:00:00]} Kxc6 {[%emt 0:00:00]} 59. Bf4 {[%emt 0:00:00]} Bf6 {[%emt 0:00:
01]} 60. h6 {[%emt 0:00:00]} Kd7 {[%emt 0:00:04]} 61. h7 {[%emt 0:00:00]} 1-0

[Event "Gibraltar Masters 18th"]
[Site "Gibraltar"]
[Date "2020.01.25"]
[Round "5.29"]
[White "Quintiliano Pinto, Renato R"]
[Black "Lagarde, Maxime"]
[Result "0-1"]
[ECO "E90"]
[WhiteElo "2471"]
[BlackElo "2651"]
[PlyCount "66"]
[EventDate "2020.01.21"]
[EventType "swiss"]
[EventRounds "10"]
[EventCountry "GGB"]
[SourceTitle "BritBase"]
[Source "John Saunders"]
[SourceDate "2021.06.05"]
[SourceVersion "1"]
[SourceVersionDate "2021.06.05"]
[SourceQuality "1"]
[TimeControl "40/100:0"]
[WhiteClock "0:00:34"]
[BlackClock "0:59:09"]

1. d4 {[%emt 0:00:00]} Nf6 {[%emt 0:00:00]} 2. c4 {[%emt 0:00:00]} c5 {[%emt 0:
00:00]} 3. d5 {[%emt 0:00:00]} g6 {[%emt 0:00:00]} 4. Nc3 {[%emt 0:00:00]} Bg7
{[%emt 0:00:00]} 5. Nf3 {[%emt 0:00:00]} O-O {[%emt 0:00:00]} 6. e4 {[%emt 0:
00:00]} d6 {[%emt 0:00:00]} 7. h3 {[%emt 0:00:00]} e6 {[%emt 0:00:00]} 8. Bd3 {
[%emt 0:00:00]} Nbd7 {[%emt 0:00:00]} 9. O-O {[%emt 0:00:00]} e5 {[%emt 0:00:
00]} 10. Bg5 {[%emt 0:00:00]} h6 {[%emt 0:00:00]} 11. Bd2 {[%emt 0:00:00]} Nh7
{[%emt 0:00:00]} 12. Qc2 {[%emt 0:00:00]} Ng5 {[%emt 0:00:00]} 13. Nh2 {
[%emt 0:00:00]} Nf6 {[%emt 0:00:00]} 14. Qc1 {[%emt 0:00:00]} Nh5 {[%emt 0:00:
00]} 15. h4 {[%emt 0:00:00]} Nh7 {[%emt 0:00:00]} 16. g3 {[%emt 0:00:00]} Bh3 {
[%emt 0:00:00]} 17. Re1 {[%emt 0:00:00]} f5 {[%emt 0:00:00]} 18. exf5 {[%emt 0:
00:00]} gxf5 {[%emt 0:00:00]} 19. Bxh6 {[%emt 0:00:00]} Qf6 {[%emt 0:00:00]}
20. Bg5 {[%emt 0:00:00]} Qg6 {[%emt 0:00:00]} 21. g4 {[%emt 0:00:00]} Nxg5 {
[%emt 0:00:00]} 22. Qxg5 {[%emt 0:00:00]} Qxg5 {[%emt 0:00:00]} 23. hxg5 {
[%emt 0:00:00]} fxg4 {[%emt 0:00:00]} 24. Re4 {[%emt 0:00:00]} Rf5 {[%emt 0:00:
00]} 25. Re3 {[%emt 0:00:00]} e4 {[%emt 0:00:00]} 26. Nxe4 {[%emt 0:00:00]} Rf4
{[%emt 0:00:00]} 27. Nxd6 {[%emt 0:00:00]} Raf8 {[%emt 0:00:00]} 28. Bg6 {
[%emt 0:00:00]} g3 {[%emt 0:00:00]} 29. Bxh5 {[%emt 0:00:00]} Bd4 {[%emt 0:00:
00]} 30. Bf7+ {[%emt 0:00:46]} R8xf7 {[%emt 0:00:00]} 31. Nxf7 {[%emt 0:00:00]}
Rxf7 {[%emt 0:00:00]} 32. g6 {[%emt 0:00:12]} Rxf2 {[%emt 0:00:00]} 33. Ng4 {
[%emt 0:00:08]} Rf3 {[%emt 0:00:00]} 0-1

[Event "Gibraltar Masters 18th"]
[Site "Gibraltar"]
[Date "2020.01.25"]
[Round "5.30"]
[White "Bulmaga, Irina"]
[Black "Donchenko, Alexander"]
[Result "0-1"]
[ECO "B45"]
[WhiteElo "2446"]
[BlackElo "2647"]
[PlyCount "56"]
[EventDate "2020.01.21"]
[EventType "swiss"]
[EventRounds "10"]
[EventCountry "GGB"]
[SourceTitle "BritBase"]
[Source "John Saunders"]
[SourceDate "2021.06.05"]
[SourceVersion "1"]
[SourceVersionDate "2021.06.05"]
[SourceQuality "1"]
[TimeControl "40/100:0"]
[WhiteClock "0:00:32"]
[BlackClock "0:11:16"]

1. e4 {[%emt 0:00:00]} c5 {[%emt 0:00:00]} 2. Nf3 {[%emt 0:00:00]} e6 {[%emt 0:
00:00]} 3. d4 {[%emt 0:00:00]} cxd4 {[%emt 0:00:00]} 4. Nxd4 {[%emt 0:00:00]}
Nf6 {[%emt 0:00:00]} 5. Nc3 {[%emt 0:00:00]} Nc6 {[%emt 0:00:00]} 6. Ndb5 {
[%emt 0:00:00]} Bc5 {[%emt 0:00:00]} 7. Nd6+ {[%emt 0:00:00]} Ke7 {[%emt 0:00:
00]} 8. Bf4 {[%emt 0:00:00]} e5 {[%emt 0:00:00]} 9. Nf5+ {[%emt 0:00:00]} Kf8 {
[%emt 0:00:00]} 10. Bg5 {[%emt 0:00:00]} d6 {[%emt 0:00:00]} 11. Qd2 {[%emt 0:
00:00]} Bxf5 {[%emt 0:00:00]} 12. exf5 {[%emt 0:00:00]} Bb4 {[%emt 0:00:00]}
13. O-O-O {[%emt 0:00:00]} Rc8 {[%emt 0:00:00]} 14. a3 {[%emt 0:00:00]} Bxc3 {
[%emt 0:00:00]} 15. bxc3 {[%emt 0:00:00]} Ke7 {[%emt 0:00:00]} 16. Bc4 {
[%emt 0:00:00]} Na5 {[%emt 0:00:00]} 17. Ba2 {[%emt 0:00:00]} Rc5 {[%emt 0:00:
00]} 18. Rhe1 {[%emt 0:00:00]} Qc7 {[%emt 0:00:00]} 19. f4 {[%emt 0:00:00]} Rc8
{[%emt 0:00:00]} 20. fxe5 {[%emt 0:00:00]} dxe5 {[%emt 0:00:00]} 21. Qd4 {
[%emt 0:00:00]} Kf8 {[%emt 0:00:00]} 22. Qb4 {[%emt 0:00:00]} Kg8 {[%emt 0:00:
00]} 23. Bxf6 {[%emt 0:00:00]} gxf6 {[%emt 0:00:00]} 24. Re3 {[%emt 0:00:00]}
Nc4 {[%emt 0:00:00]} 25. Rg3+ {[%emt 0:00:15]} Kh8 {[%emt 0:00:00]} 26. a4 {
[%emt 0:00:53]} a5 {[%emt 0:00:00]} 27. Qb3 {[%emt 0:00:00]} e4 {[%emt 0:00:00]
} 28. Rd4 {[%emt 0:00:00]} Qf4+ {[%emt 0:00:00]} 0-1

[Event "Gibraltar Masters 18th"]
[Site "Gibraltar"]
[Date "2020.01.25"]
[Round "5.31"]
[White "Moussard, Jules"]
[Black "Gunina, Valentina"]
[Result "1-0"]
[ECO "B11"]
[WhiteElo "2600"]
[BlackElo "2461"]
[PlyCount "97"]
[EventDate "2020.01.21"]
[EventType "swiss"]
[EventRounds "10"]
[EventCountry "GGB"]
[SourceTitle "BritBase"]
[Source "John Saunders"]
[SourceDate "2021.06.05"]
[SourceVersion "1"]
[SourceVersionDate "2021.06.05"]
[SourceQuality "1"]
[TimeControl "40/100:0"]
[WhiteClock "1:01:37"]
[BlackClock "0:06:19"]

1. e4 {[%emt 0:00:00]} c6 {[%emt 0:00:00]} 2. Nc3 {[%emt 0:00:00]} d5 {[%emt 0:
00:00]} 3. Nf3 {[%emt 0:00:00]} dxe4 {[%emt 0:00:00]} 4. Nxe4 {[%emt 0:00:00]}
Nf6 {[%emt 0:00:00]} 5. Qe2 {[%emt 0:00:00]} Nxe4 {[%emt 0:00:00]} 6. Qxe4 {
[%emt 0:00:00]} Qa5 {[%emt 0:00:00]} 7. Qf4 {[%emt 0:00:00]} Qf5 {[%emt 0:00:
00]} 8. Qe3 {[%emt 0:00:00]} Qxc2 {[%emt 0:00:00]} 9. Bd3 {[%emt 0:00:00]} Qa4
{[%emt 0:00:00]} 10. O-O {[%emt 0:00:00]} f6 {[%emt 0:00:00]} 11. b3 {[%emt 0:
00:00]} Qa5 {[%emt 0:00:00]} 12. Bb2 {[%emt 0:00:00]} Na6 {[%emt 0:00:00]} 13.
Rfe1 {[%emt 0:00:00]} Bd7 {[%emt 0:00:00]} 14. b4 {[%emt 0:00:00]} Qd5 {
[%emt 0:00:00]} 15. a3 {[%emt 0:00:00]} Nc7 {[%emt 0:00:00]} 16. Nd4 {[%emt 0:
00:00]} e6 {[%emt 0:00:00]} 17. Rac1 {[%emt 0:00:00]} Qh5 {[%emt 0:00:00]} 18.
Be2 {[%emt 0:00:00]} Qf7 {[%emt 0:00:00]} 19. Qg3 {[%emt 0:00:00]} Nd5 {
[%emt 0:00:00]} 20. Bc4 {[%emt 0:00:00]} e5 {[%emt 0:00:00]} 21. f4 {[%emt 0:
00:00]} Bd6 {[%emt 0:00:00]} 22. fxe5 {[%emt 0:00:00]} fxe5 {[%emt 0:00:00]}
23. Nf3 {[%emt 0:00:00]} O-O {[%emt 0:00:00]} 24. Bxe5 {[%emt 0:00:00]} Bxe5 {
[%emt 0:00:00]} 25. Rxe5 {[%emt 0:00:00]} Rad8 {[%emt 0:00:00]} 26. Bxd5 {
[%emt 0:00:00]} cxd5 {[%emt 0:00:00]} 27. Rc7 {[%emt 0:00:00]} Qf6 {[%emt 0:00:
00]} 28. d4 {[%emt 0:00:00]} h6 {[%emt 0:00:00]} 29. h3 {[%emt 0:00:00]} a6 {
[%emt 0:00:05]} 30. Rxb7 {[%emt 0:00:00]} Rf7 {[%emt 0:00:17]} 31. Rc7 {
[%emt 0:00:00]} Bf5 {[%emt 0:00:28]} 32. Rc5 {[%emt 0:00:00]} Be4 {[%emt 0:00:
00]} 33. Nd2 {[%emt 0:00:00]} Kh7 {[%emt 0:00:10]} 34. Qe3 {[%emt 0:00:00]} Bg6
{[%emt 0:00:02]} 35. Rcxd5 {[%emt 0:00:00]} Rxd5 {[%emt 0:00:01]} 36. Rxd5 {
[%emt 0:00:00]} Qh4 {[%emt 0:00:03]} 37. Re5 {[%emt 0:00:00]} Rc7 {[%emt 0:00:
00]} 38. Nf3 {[%emt 0:00:00]} Qd8 {[%emt 0:00:00]} 39. Re6 {[%emt 0:00:00]} Qc8
{[%emt 0:00:00]} 40. Qe5 {[%emt 0:00:00]} Rc1+ {[%emt 0:00:00]} 41. Kh2 {
[%emt 0:00:00]} Rc7 {[%emt 0:00:00]} 42. d5 {[%emt 0:00:00]} Bf7 {[%emt 0:00:
00]} 43. d6 {[%emt 0:00:00]} Rb7 {[%emt 0:00:00]} 44. Re7 {[%emt 0:00:00]} Rb5
{[%emt 0:00:00]} 45. d7 {[%emt 0:00:00]} Qd8 {[%emt 0:00:00]} 46. Qe4+ {
[%emt 0:00:00]} Bg6 {[%emt 0:00:00]} 47. Qd4 {[%emt 0:00:00]} Qc7+ {[%emt 0:00:
00]} 48. Ne5 {[%emt 0:00:00]} Rb8 {[%emt 0:00:00]} 49. Qc5 {[%emt 0:00:00]} 1-0

[Event "Gibraltar Masters 18th"]
[Site "Gibraltar"]
[Date "2020.01.25"]
[Round "5.32"]
[White "Kobo, Ori"]
[Black "Santos Latasa, Jaime"]
[Result "1/2-1/2"]
[ECO "A45"]
[WhiteElo "2445"]
[BlackElo "2586"]
[PlyCount "65"]
[EventDate "2020.01.21"]
[EventType "swiss"]
[EventRounds "10"]
[EventCountry "GGB"]
[SourceTitle "BritBase"]
[Source "John Saunders"]
[SourceDate "2021.06.05"]
[SourceVersion "1"]
[SourceVersionDate "2021.06.05"]
[SourceQuality "1"]
[TimeControl "40/100:0"]
[WhiteClock "0:03:53"]
[BlackClock "0:36:31"]

1. d4 {[%emt 0:00:00]} Nf6 {[%emt 0:00:00]} 2. Bg5 {[%emt 0:00:00]} c5 {
[%emt 0:00:00]} 3. Bxf6 {[%emt 0:00:00]} gxf6 {[%emt 0:00:00]} 4. d5 {[%emt 0:
00:00]} Qb6 {[%emt 0:00:00]} 5. Qc1 {[%emt 0:00:00]} f5 {[%emt 0:00:00]} 6. c4
{[%emt 0:00:00]} Bg7 {[%emt 0:00:00]} 7. Nc3 {[%emt 0:00:00]} d6 {[%emt 0:00:
00]} 8. e3 {[%emt 0:00:00]} Nd7 {[%emt 0:00:00]} 9. Qc2 {[%emt 0:00:00]} e5 {
[%emt 0:00:00]} 10. Nge2 {[%emt 0:00:00]} Nf6 {[%emt 0:00:00]} 11. Ng3 {
[%emt 0:00:00]} h5 {[%emt 0:00:00]} 12. h4 {[%emt 0:00:00]} Ng4 {[%emt 0:00:00]
} 13. Rb1 {[%emt 0:00:00]} f4 {[%emt 0:00:00]} 14. exf4 {[%emt 0:00:00]} exf4 {
[%emt 0:00:00]} 15. Nge4 {[%emt 0:00:00]} Bd7 {[%emt 0:00:00]} 16. Be2 {
[%emt 0:00:00]} Kf8 {[%emt 0:00:00]} 17. Ng5 {[%emt 0:00:00]} Re8 {[%emt 0:00:
00]} 18. O-O {[%emt 0:00:00]} Qd8 {[%emt 0:00:00]} 19. Qd2 {[%emt 0:00:00]} Be5
{[%emt 0:00:00]} 20. b4 {[%emt 0:00:00]} cxb4 {[%emt 0:00:00]} 21. Rxb4 {
[%emt 0:00:00]} b6 {[%emt 0:00:00]} 22. g3 {[%emt 0:00:00]} Rg8 {[%emt 0:00:00]
} 23. Bxg4 {[%emt 0:00:00]} Bxg4 {[%emt 0:00:00]} 24. c5 {[%emt 0:00:00]} f6 {
[%emt 0:00:00]} 25. Rxf4 {[%emt 0:00:00]} Bxf4 {[%emt 0:00:00]} 26. Qxf4 {
[%emt 0:00:00]} Kg7 {[%emt 0:00:00]} 27. Ne6+ {[%emt 0:00:00]} Bxe6 {[%emt 0:
00:00]} 28. dxe6 {[%emt 0:00:00]} Rxe6 {[%emt 0:00:00]} 29. cxb6 {[%emt 0:00:
00]} axb6 {[%emt 0:00:00]} 30. Nd5 {[%emt 0:00:00]} Re5 {[%emt 0:00:00]} 31.
Rd1 {[%emt 0:00:00]} Rge8 {[%emt 0:00:00]} 32. Ne3 {[%emt 0:00:00]} Kg6 {
[%emt 0:00:00]} 33. Kh2 {[%emt 0:00:00]} 1/2-1/2

[Event "Gibraltar Masters 18th"]
[Site "Gibraltar"]
[Date "2020.01.25"]
[Round "5.33"]
[White "Kadric, Denis"]
[Black "Womacka, Mathias"]
[Result "1-0"]
[ECO "B23"]
[WhiteElo "2585"]
[BlackElo "2439"]
[PlyCount "67"]
[EventDate "2020.01.21"]
[EventType "swiss"]
[EventRounds "10"]
[EventCountry "GGB"]
[SourceTitle "BritBase"]
[Source "John Saunders"]
[SourceDate "2021.06.05"]
[SourceVersion "1"]
[SourceVersionDate "2021.06.05"]
[SourceQuality "1"]
[TimeControl "40/100:0"]

1. e4 {[%emt 1:17:01]} c5 {[%emt 0:00:06]} 2. Nc3 {[%emt 0:00:03]} Nc6 {
[%emt 0:00:25]} 3. Nge2 {[%emt 0:00:53]} Nd4 {[%emt 0:00:23]} 4. b3 {[%emt 0:
01:05]} e5 {[%emt 0:06:01]} 5. Nxd4 {[%emt 0:01:46]} cxd4 {[%emt 0:02:50]} 6.
Nd5 {[%emt 0:00:02]} a6 {[%emt 0:54:44]} 7. c3 {[%emt 0:08:00]} Nf6 {[%emt 0:
09:20]} 8. Bc4 {[%emt 0:00:05]} Bc5 {[%emt 0:00:08]} 9. O-O {[%emt 0:18:00]} d6
{[%emt 0:02:37]} 10. b4 {[%emt 0:06:38]} Ba7 {[%emt 0:00:20]} 11. Nxf6+ {
[%emt 0:00:03]} Qxf6 {[%emt 0:02:44]} 12. Bd5 {[%emt 0:00:54]} dxc3 {[%emt 0:
04:13]} 13. dxc3 {[%emt 0:00:03]} O-O {[%emt 0:00:05]} 14. Kh1 {[%emt 0:01:41]}
Qe7 {[%emt 0:04:08]} 15. f4 {[%emt 0:07:08]} Be6 {[%emt 0:00:06]} 16. f5 {
[%emt 0:02:10]} Bxd5 {[%emt 0:00:04]} 17. Qxd5 {[%emt 0:01:33]} Kh8 {[%emt 0:
00:12]} 18. Bb2 {[%emt 0:07:23]} Rac8 {[%emt 0:01:06]} 19. Rad1 {[%emt 0:00:16]
} Rc6 {[%emt 0:00:11]} 20. Rf3 {[%emt 0:08:54]} f6 {[%emt 0:01:24]} 21. Rfd3 {
[%emt 0:02:33]} Bb8 {[%emt 0:02:23]} 22. g4 {[%emt 0:05:29]} Qf7 {[%emt 0:00:
55]} 23. Kg2 {[%emt 0:00:02]} Qxd5 {[%emt 0:00:12]} 24. Rxd5 {[%emt 0:00:03]}
g6 {[%emt 0:07:40]} 25. Kf3 {[%emt 0:00:55]} Kg7 {[%emt 0:00:31]} 26. a4 {
[%emt 0:00:38]} h5 {[%emt 0:01:07]} 27. Rg1 {[%emt 0:06:27]} Kf7 {[%emt 0:05:
37]} 28. fxg6+ {[%emt 0:01:45]} Kxg6 {[%emt 0:00:06]} 29. gxh5+ Kh7 {[%emt 0:
00:44]} 30. h6 {[%emt 0:05:27]} Kxh6 {[%emt 0:02:10]} 31. Rd3 {[%emt 0:05:56]}
Rc4 {[%emt 0:00:08]} 32. Bc1+ {[%emt 0:07:02]} Kh5 {[%emt 0:01:41]} 33. Rg7 {
[%emt 0:03:56]} d5 {[%emt 0:00:32]} 34. Kg2 {[%emt 0:00:40]} 1-0

[Event "Gibraltar Masters 18th"]
[Site "Gibraltar"]
[Date "2020.01.25"]
[Round "5.34"]
[White "Ramirez, Alejandro"]
[Black "Astaneh Lopez, Alex"]
[Result "1/2-1/2"]
[ECO "A11"]
[WhiteElo "2574"]
[BlackElo "2432"]
[PlyCount "94"]
[EventDate "2020.01.21"]
[EventType "swiss"]
[EventRounds "10"]
[EventCountry "GGB"]
[SourceTitle "BritBase"]
[Source "John Saunders"]
[SourceDate "2021.06.05"]
[SourceVersion "1"]
[SourceVersionDate "2021.06.05"]
[SourceQuality "1"]
[TimeControl "40/100:0"]
[WhiteClock "0:20:52"]
[BlackClock "0:25:54"]

1. c4 {[%emt 0:00:00]} c6 {[%emt 0:00:00]} 2. Nf3 {[%emt 0:00:00]} Nf6 {
[%emt 0:00:00]} 3. Nc3 {[%emt 0:00:00]} d5 {[%emt 0:00:00]} 4. e3 {[%emt 0:00:
00]} Bg4 {[%emt 0:00:00]} 5. Qb3 {[%emt 0:00:00]} Qb6 {[%emt 0:00:00]} 6. Qxb6
{[%emt 0:00:00]} axb6 {[%emt 0:00:00]} 7. cxd5 {[%emt 0:00:00]} Bxf3 {[%emt 0:
00:00]} 8. gxf3 {[%emt 0:00:00]} cxd5 {[%emt 0:00:00]} 9. Nb5 {[%emt 0:00:00]}
Na6 {[%emt 0:00:00]} 10. b3 {[%emt 0:00:00]} e6 {[%emt 0:00:00]} 11. Bb2 {
[%emt 0:00:00]} Be7 {[%emt 0:00:00]} 12. a3 {[%emt 0:00:00]} O-O {[%emt 0:00:
00]} 13. Bd3 {[%emt 0:00:00]} Ne8 {[%emt 0:00:00]} 14. Ke2 {[%emt 0:00:00]} Bf6
{[%emt 0:00:00]} 15. Bxf6 {[%emt 0:00:00]} Nxf6 {[%emt 0:00:00]} 16. b4 {
[%emt 0:00:00]} Rfd8 {[%emt 0:00:00]} 17. Rac1 {[%emt 0:00:00]} Ne8 {[%emt 0:
00:00]} 18. Rc3 {[%emt 0:00:00]} g6 {[%emt 0:00:00]} 19. Rhc1 {[%emt 0:00:00]}
Kf8 {[%emt 0:00:00]} 20. f4 {[%emt 0:00:00]} Ke7 {[%emt 0:00:00]} 21. f3 {
[%emt 0:00:00]} Rd7 {[%emt 0:00:00]} 22. e4 {[%emt 0:00:00]} dxe4 {[%emt 0:00:
00]} 23. fxe4 {[%emt 0:00:00]} Nd6 {[%emt 0:00:00]} 24. Nxd6 {[%emt 0:00:00]}
Rxd6 {[%emt 0:00:00]} 25. e5 {[%emt 0:00:00]} Rd7 {[%emt 0:00:00]} 26. Be4 {
[%emt 0:00:00]} Kd8 {[%emt 0:00:00]} 27. d4 {[%emt 0:00:00]} Rb8 {[%emt 0:00:
00]} 28. Ke3 {[%emt 0:00:00]} Nc7 {[%emt 0:00:00]} 29. a4 {[%emt 0:00:00]} Ra8
{[%emt 0:00:00]} 30. Bxb7 {[%emt 0:00:00]} Rxa4 {[%emt 0:00:00]} 31. Bc6 {
[%emt 0:00:00]} Nd5+ {[%emt 0:00:00]} 32. Bxd5 {[%emt 0:00:00]} Rxd5 {[%emt 0:
00:00]} 33. Rc8+ {[%emt 0:00:00]} Ke7 {[%emt 0:00:00]} 34. Rb8 {[%emt 0:00:00]}
Rxb4 {[%emt 0:00:00]} 35. Rc7+ {[%emt 0:00:00]} Rd7 {[%emt 0:00:00]} 36. Rcc8 {
[%emt 0:00:00]} Rb3+ {[%emt 0:00:00]} 37. Kd2 {[%emt 0:00:23]} Ra7 {[%emt 0:00:
00]} 38. Kc2 {[%emt 0:00:36]} Rf3 {[%emt 0:00:00]} 39. Re8+ {[%emt 0:00:00]}
Kd7 {[%emt 0:00:00]} 40. Red8+ {[%emt 0:00:00]} Kc6 {[%emt 0:00:00]} 41. Rd6+ {
[%emt 0:00:00]} Kc7 {[%emt 0:00:00]} 42. Rbxb6 {[%emt 0:00:00]} Rf2+ {[%emt 0:
00:00]} 43. Kc3 {[%emt 0:00:00]} Rxf4 {[%emt 0:00:00]} 44. Rbc6+ {[%emt 0:00:
00]} Kb7 {[%emt 0:00:00]} 45. Rc5 {[%emt 0:00:00]} Ra1 {[%emt 0:00:00]} 46.
Rd7+ {[%emt 0:00:00]} Kb6 {[%emt 0:00:00]} 47. Rd6+ {[%emt 0:00:00]} Kb7 {
[%emt 0:00:05]} 1/2-1/2

[Event "Gibraltar Masters 18th"]
[Site "Gibraltar"]
[Date "2020.01.25"]
[Round "5.35"]
[White "Li, Di"]
[Black "Mendonca, Leon Luke"]
[Result "1/2-1/2"]
[ECO "E15"]
[WhiteElo "2562"]
[BlackElo "2417"]
[PlyCount "70"]
[EventDate "2020.01.21"]
[EventType "swiss"]
[EventRounds "10"]
[EventCountry "GGB"]
[SourceTitle "BritBase"]
[Source "John Saunders"]
[SourceDate "2021.06.05"]
[SourceVersion "1"]
[SourceVersionDate "2021.06.05"]
[SourceQuality "1"]
[TimeControl "40/100:0"]
[WhiteClock "0:02:40"]
[BlackClock "0:09:15"]

1. Nf3 {[%emt 0:00:00]} Nf6 {[%emt 0:00:00]} 2. d4 {[%emt 0:00:00]} e6 {
[%emt 0:00:00]} 3. c4 {[%emt 0:00:00]} b6 {[%emt 0:00:00]} 4. g3 {[%emt 0:00:
00]} Ba6 {[%emt 0:00:00]} 5. b3 {[%emt 0:00:00]} Bb4+ {[%emt 0:00:00]} 6. Bd2 {
[%emt 0:00:00]} Be7 {[%emt 0:00:00]} 7. Bg2 {[%emt 0:00:00]} d5 {[%emt 0:00:00]
} 8. Ne5 {[%emt 0:00:00]} O-O {[%emt 0:00:00]} 9. O-O {[%emt 0:00:00]} Bb7 {
[%emt 0:00:00]} 10. Bc3 {[%emt 0:00:00]} c5 {[%emt 0:00:00]} 11. dxc5 {[%emt 0:
00:00]} bxc5 {[%emt 0:00:00]} 12. Nd2 {[%emt 0:00:00]} Nbd7 {[%emt 0:00:00]}
13. cxd5 {[%emt 0:00:00]} exd5 {[%emt 0:00:00]} 14. Ndc4 {[%emt 0:00:00]} Nxe5
{[%emt 0:00:00]} 15. Bxe5 {[%emt 0:00:00]} Rc8 {[%emt 0:00:00]} 16. Qc2 {
[%emt 0:00:00]} Qd7 {[%emt 0:00:00]} 17. Rad1 {[%emt 0:00:00]} Qe6 {[%emt 0:00:
00]} 18. Ba1 {[%emt 0:00:00]} Bc6 {[%emt 0:00:00]} 19. Ne5 {[%emt 0:00:00]} Ba8
{[%emt 0:00:00]} 20. Rfe1 {[%emt 0:00:00]} Rfd8 {[%emt 0:00:00]} 21. e3 {
[%emt 0:00:00]} Bd6 {[%emt 0:00:00]} 22. Nf3 {[%emt 0:00:00]} h6 {[%emt 0:00:
00]} 23. Qc3 {[%emt 0:00:00]} Bf8 {[%emt 0:00:00]} 24. Qa5 {[%emt 0:00:00]} Qb6
{[%emt 0:00:00]} 25. Qxb6 {[%emt 0:00:00]} axb6 {[%emt 0:00:00]} 26. Bxf6 {
[%emt 0:00:00]} gxf6 {[%emt 0:00:00]} 27. a4 {[%emt 0:00:00]} d4 {[%emt 0:00:
00]} 28. Nd2 {[%emt 0:00:00]} dxe3 {[%emt 0:00:00]} 29. fxe3 {[%emt 0:00:00]}
Bxg2 30. Kxg2 {[%emt 0:00:00]} Rd3 {[%emt 0:00:00]} 31. Kf3 {[%emt 0:00:00]} c4
{[%emt 0:00:00]} 32. Nxc4 {[%emt 0:00:00]} Rxb3 {[%emt 0:00:00]} 33. Nd6 {
[%emt 0:00:00]} Bxd6 {[%emt 0:00:00]} 34. Rxd6 {[%emt 0:00:00]} Kg7 {[%emt 0:
00:00]} 35. Rd4 {[%emt 0:00:00]} Rc5 {[%emt 0:00:00]} 1/2-1/2